[Event "Titled Tuesday Blitz July 11 Late 2023"]
[White "Da Matta, Eduardo Cesar"]
[Black "Gasparyan, David"]
[WhiteFideId "2193108"]
[BlackFideId "13311980"]
[WhiteElo "2307"]
[BlackElo "2515"]
[Result "0-1"]
[Round "2"]
[TimeControl "180+2"]
[Date "2023.07.11"]
[WhiteClock "0:00:24"]
[BlackClock "0:00:12"]
[Board "149"]

1. d4 {[%clk 0:03:00]}  Nf6 {[%clk 0:02:59]} 2. c4 {[%clk 0:03:00]}  e6 {[%clk 0:02:59]} 3. Nc3 {[%clk 0:03:00]}  d5 {[%clk 0:02:57]} 4. cxd5 {[%clk 0:02:59]}  exd5 {[%clk 0:02:57]} 5. Bg5 {[%clk 0:03:00]}  Be7 {[%clk 0:02:56]} 6. e3 {[%clk 0:03:00]}  O-O {[%clk 0:02:56]} 7. Bd3 {[%clk 0:03:01]}  h6 {[%clk 0:02:46]} 8. Bh4 {[%clk 0:03:00]}  Nbd7 {[%clk 0:02:44]} 9. Qc2 {[%clk 0:03:00]}  c5 {[%clk 0:02:41]} 10. Nge2 {[%clk 0:03:00]}  Nb6 {[%clk 0:02:29]} 11. dxc5 {[%clk 0:02:59]}  Bxc5 {[%clk 0:02:30]} 12. O-O {[%clk 0:02:57]}  Be6 {[%clk 0:02:27]} 13. Rfd1 {[%clk 0:02:21]}  Rc8 {[%clk 0:02:26]} 14. Rac1 {[%clk 0:02:13]}  Bd6 {[%clk 0:02:25]} 15. Bg3 {[%clk 0:02:04]}  Bxg3 {[%clk 0:02:20]} 16. Nxg3 {[%clk 0:02:02]}  Nc4 {[%clk 0:02:01]} 17. b3 {[%clk 0:01:37]}  Ne5 {[%clk 0:01:58]} 18. Bf5 {[%clk 0:01:31]}  Qb6 {[%clk 0:01:28]} 19. Qd2 {[%clk 0:01:29]}  Rfd8 {[%clk 0:01:24]} 20. Nce2 {[%clk 0:01:25]}  Ne4 {[%clk 0:01:15]} 21. Bxe4 {[%clk 0:01:16]}  dxe4 {[%clk 0:01:15]} 22. Rxc8 {[%clk 0:01:16]}  Rxc8 {[%clk 0:01:12]} 23. Nxe4 {[%clk 0:01:15]}  Qc6 {[%clk 0:00:56]} 24. N4g3 {[%clk 0:01:11]}  Bh3 {[%clk 0:00:51]} 25. Qd5 {[%clk 0:00:50]}  Qf6 {[%clk 0:00:15]} 26. gxh3 {[%clk 0:00:46]}  Nf3+ {[%clk 0:00:15]} 27. Kg2 {[%clk 0:00:47]}  Nh4+ {[%clk 0:00:15]} 28. Kf1 {[%clk 0:00:42]}  Re8 {[%clk 0:00:12]} 29. Qd6 {[%clk 0:00:34]}  Qf3 {[%clk 0:00:12]} 30. Qf4 {[%clk 0:00:31]}  Qg2+ {[%clk 0:00:11]} 31. Ke1 {[%clk 0:00:24]}  Nf3+ {[%clk 0:00:12]} 0-1


[Site "https://www.chess.com"]

[Event "Titled Tuesday Blitz July 11 Late 2023"]
[White "Dixit, Nikhil"]
[Black "Hoffmann, Asa"]
[WhiteFideId "5059534"]
[BlackFideId "2001470"]
[WhiteElo "2510"]
[BlackElo "2298"]
[Result "1-0"]
[Round "2"]
[TimeControl "180+2"]
[Date "2023.07.11"]
[WhiteClock "0:00:13"]
[BlackClock "0:00:00"]
[Board "154"]

1. e4 {[%clk 0:02:25]}  d6 {[%clk 0:02:58]} 2. d4 {[%clk 0:02:20]}  Nf6 {[%clk 0:02:58]} 3. Nc3 {[%clk 0:02:21]}  c6 {[%clk 0:02:58]} 4. Bg5 {[%clk 0:02:18]}  Nbd7 {[%clk 0:02:57]} 5. Nf3 {[%clk 0:02:18]}  b5 {[%clk 0:02:56]} 6. e5 {[%clk 0:02:17]}  b4 {[%clk 0:02:54]} 7. exf6 {[%clk 0:02:15]}  gxf6 {[%clk 0:02:54]} 8. Ne4 {[%clk 0:02:11]}  fxg5 {[%clk 0:02:51]} 9. Qe2 {[%clk 0:02:11]}  e6 {[%clk 0:02:37]} 10. Nfxg5 {[%clk 0:02:10]}  Nf6 {[%clk 0:02:11]} 11. O-O-O {[%clk 0:02:08]}  Bh6 {[%clk 0:02:04]} 12. h4 {[%clk 0:02:06]}  Nxe4 {[%clk 0:01:59]} 13. Qxe4 {[%clk 0:02:07]}  f6 {[%clk 0:01:57]} 14. Qxc6+ {[%clk 0:02:03]}  Bd7 {[%clk 0:01:55]} 15. Qxd6 {[%clk 0:02:03]}  fxg5 {[%clk 0:01:53]} 16. Be2 {[%clk 0:02:02]}  gxh4+ {[%clk 0:01:45]} 17. Kb1 {[%clk 0:02:02]}  Kf7 {[%clk 0:01:32]} 18. d5 {[%clk 0:01:51]}  Qe7 {[%clk 0:01:22]} 19. Bh5+ {[%clk 0:01:46]}  Kf8 {[%clk 0:01:20]} 20. dxe6 {[%clk 0:01:42]}  Bxe6 {[%clk 0:01:06]} 21. Qd4 {[%clk 0:01:34]}  Bg7 {[%clk 0:01:02]} 22. Qf4+ {[%clk 0:01:34]}  Qf6 {[%clk 0:01:00]} 23. Qxb4+ {[%clk 0:01:33]}  Kg8 {[%clk 0:00:59]} 24. Rxh4 {[%clk 0:01:28]}  a5 {[%clk 0:00:50]} 25. Qb7 {[%clk 0:01:12]}  Rd8 {[%clk 0:00:35]} 26. Rxd8+ {[%clk 0:01:08]}  Qxd8 {[%clk 0:00:34]} 27. Rf4 {[%clk 0:01:08]}  Bf6 {[%clk 0:00:17]} 28. Bg4 {[%clk 0:01:01]}  Bf7 {[%clk 0:00:14]} 29. Qf3 {[%clk 0:00:55]}  Kg7 {[%clk 0:00:12]} 30. Bh5 {[%clk 0:00:52]}  Bg6 {[%clk 0:00:10]} 31. a4 {[%clk 0:00:37]}  Rf8 {[%clk 0:00:10]} 32. Bxg6 {[%clk 0:00:36]}  hxg6 {[%clk 0:00:10]} 33. Qb7+ {[%clk 0:00:33]}  Qe7 {[%clk 0:00:09]} 34. Qxe7+ {[%clk 0:00:27]}  Bxe7 {[%clk 0:00:09]} 35. Re4 {[%clk 0:00:26]}  Bb4 {[%clk 0:00:08]} 36. c3 {[%clk 0:00:26]}  Bc5 {[%clk 0:00:08]} 37. f3 {[%clk 0:00:26]}  Bf2 {[%clk 0:00:07]} 38. Kc2 {[%clk 0:00:26]}  Kf6 {[%clk 0:00:07]} 39. b4 {[%clk 0:00:26]}  Rb8 {[%clk 0:00:06]} 40. Kb3 {[%clk 0:00:26]}  g5 {[%clk 0:00:04]} 41. Re2 {[%clk 0:00:16]}  Bb6 {[%clk 0:00:04]} 42. Re4 {[%clk 0:00:11]}  Bc7 {[%clk 0:00:04]} 43. Rc4 {[%clk 0:00:11]}  Bd6 {[%clk 0:00:04]} 44. Rc6 {[%clk 0:00:11]}  Ke5 {[%clk 0:00:04]} 45. b5 {[%clk 0:00:11]}  Kd5 {[%clk 0:00:03]} 46. c4+ {[%clk 0:00:11]}  Ke5 {[%clk 0:00:03]} 47. c5 {[%clk 0:00:12]}  Be7 {[%clk 0:00:03]} 48. Kc4 {[%clk 0:00:12]}  Rd8 {[%clk 0:00:02]} 49. b6 {[%clk 0:00:13]}  Rd4+ {[%clk 0:00:00]} 50. Kb5 {[%clk 0:00:13]} 1-0


[Site "https://www.chess.com"]

[Event "Titled Tuesday Blitz July 11 Late 2023"]
[White "Yedidia, Daniel"]
[Black "Georg, Heinz"]
[WhiteFideId "30905907"]
[BlackFideId "4607295"]
[WhiteElo "2509"]
[BlackElo "2272"]
[Result "1-0"]
[Round "2"]
[TimeControl "180+2"]
[Date "2023.07.11"]
[WhiteClock "0:00:57"]
[BlackClock "0:00:37"]
[Board "157"]

1. d4 {[%clk 0:03:00]}  e6 {[%clk 0:02:59]} 2. c4 {[%clk 0:03:01]}  f5 {[%clk 0:02:59]} 3. g3 {[%clk 0:03:00]}  Nf6 {[%clk 0:02:59]} 4. Bg2 {[%clk 0:03:01]}  Be7 {[%clk 0:03:00]} 5. Nh3 {[%clk 0:03:01]}  O-O {[%clk 0:03:01]} 6. O-O {[%clk 0:03:02]}  d6 {[%clk 0:03:01]} 7. Nc3 {[%clk 0:03:02]}  c6 {[%clk 0:03:01]} 8. Nf4 {[%clk 0:03:03]}  Qc7 {[%clk 0:03:01]} 9. e4 {[%clk 0:03:02]}  e5 {[%clk 0:03:01]} 10. Nfe2 {[%clk 0:03:01]}  fxe4 {[%clk 0:02:49]} 11. dxe5 {[%clk 0:03:00]}  dxe5 {[%clk 0:02:49]} 12. Nxe4 {[%clk 0:03:01]}  Bf5 {[%clk 0:02:45]} 13. N2c3 {[%clk 0:03:00]}  Nbd7 {[%clk 0:02:44]} 14. Qe2 {[%clk 0:02:53]}  Nxe4 {[%clk 0:02:41]} 15. Nxe4 {[%clk 0:02:52]}  Nf6 {[%clk 0:02:41]} 16. Nxf6+ {[%clk 0:02:48]}  Bxf6 {[%clk 0:02:42]} 17. Be3 {[%clk 0:02:47]}  a5 {[%clk 0:02:40]} 18. Rac1 {[%clk 0:02:44]}  Rad8 {[%clk 0:02:31]} 19. Rfd1 {[%clk 0:02:42]}  Rxd1+ {[%clk 0:02:23]} 20. Rxd1 {[%clk 0:02:40]}  Rd8 {[%clk 0:02:23]} 21. Rxd8+ {[%clk 0:02:39]}  Qxd8 {[%clk 0:02:24]} 22. Qd2 {[%clk 0:02:39]}  Qxd2 {[%clk 0:02:17]} 23. Bxd2 {[%clk 0:02:40]}  a4 {[%clk 0:02:15]} 24. Bc3 {[%clk 0:02:28]}  Kf7 {[%clk 0:02:13]} 25. Bf1 {[%clk 0:02:25]}  Ke6 {[%clk 0:02:12]} 26. f3 {[%clk 0:02:25]}  e4 {[%clk 0:02:12]} 27. Bxf6 {[%clk 0:02:23]}  gxf6 {[%clk 0:02:10]} 28. f4 {[%clk 0:02:20]}  Kd6 {[%clk 0:02:06]} 29. Kf2 {[%clk 0:02:19]}  Kc5 {[%clk 0:02:06]} 30. Ke3 {[%clk 0:02:20]}  Kb4 {[%clk 0:02:04]} 31. h3 {[%clk 0:02:16]}  a3 {[%clk 0:02:03]} 32. bxa3+ {[%clk 0:02:12]}  Kxa3 {[%clk 0:02:01]} 33. g4 {[%clk 0:02:13]}  Be6 {[%clk 0:01:59]} 34. Kxe4 {[%clk 0:02:11]}  Kxa2 {[%clk 0:01:56]} 35. c5 {[%clk 0:02:10]}  Kb3 {[%clk 0:01:54]} 36. Kd4 {[%clk 0:02:10]}  Kb4 {[%clk 0:01:50]} 37. f5 {[%clk 0:01:59]}  Bd5 {[%clk 0:01:47]} 38. h4 {[%clk 0:02:00]}  h6 {[%clk 0:01:46]} 39. Be2 {[%clk 0:01:54]}  Bf7 {[%clk 0:01:38]} 40. Bf3 {[%clk 0:01:54]}  Bc4 {[%clk 0:01:32]} 41. g5 {[%clk 0:01:21]}  fxg5 {[%clk 0:01:30]} 42. hxg5 {[%clk 0:01:22]}  hxg5 {[%clk 0:01:29]} 43. Bh5 {[%clk 0:01:22]}  Kb5 {[%clk 0:01:02]} 44. f6 {[%clk 0:01:12]}  b6 {[%clk 0:00:59]} 45. cxb6 {[%clk 0:00:58]}  c5+ {[%clk 0:00:58]} 46. Kc3 {[%clk 0:00:58]}  g4 {[%clk 0:00:37]} 47. b7 {[%clk 0:00:57]} 1-0


[Site "https://www.chess.com"]

[Event "Titled Tuesday Blitz July 11 Late 2023"]
[White "WindWhistler11"]
[Black "Kiselev, Pavel"]
[BlackFideId "4191102"]
[WhiteElo "2505"]
[BlackElo "2253"]
[Result "0-1"]
[Round "2"]
[TimeControl "180+2"]
[Date "2023.07.11"]
[WhiteClock "0:00:00"]
[BlackClock "0:00:03"]
[Board "158"]

1. Nf3 {[%clk 0:03:00]}  Nf6 {[%clk 0:02:59]} 2. g3 {[%clk 0:02:59]}  e6 {[%clk 0:02:59]} 3. c4 {[%clk 0:02:59]}  d5 {[%clk 0:03:00]} 4. Bg2 {[%clk 0:02:59]}  c6 {[%clk 0:02:50]} 5. b3 {[%clk 0:02:58]}  Nbd7 {[%clk 0:02:50]} 6. Bb2 {[%clk 0:02:58]}  Be7 {[%clk 0:02:51]} 7. O-O {[%clk 0:02:57]}  O-O {[%clk 0:02:51]} 8. d3 {[%clk 0:02:56]}  b6 {[%clk 0:02:52]} 9. Nbd2 {[%clk 0:02:56]}  Bb7 {[%clk 0:02:52]} 10. Qc2 {[%clk 0:02:56]}  c5 {[%clk 0:02:51]} 11. e4 {[%clk 0:02:47]}  d4 {[%clk 0:02:49]} 12. Ne1 {[%clk 0:02:39]}  e5 {[%clk 0:02:48]} 13. h3 {[%clk 0:02:37]}  Ne8 {[%clk 0:02:39]} 14. f4 {[%clk 0:02:31]}  exf4 {[%clk 0:02:38]} 15. gxf4 {[%clk 0:02:31]}  f5 {[%clk 0:02:34]} 16. e5 {[%clk 0:02:11]}  Bxg2 {[%clk 0:02:33]} 17. Nxg2 {[%clk 0:02:06]}  Nc7 {[%clk 0:02:32]} 18. Kh2 {[%clk 0:02:02]}  Ne6 {[%clk 0:02:31]} 19. Nf3 {[%clk 0:02:00]}  Kh8 {[%clk 0:02:26]} 20. h4 {[%clk 0:01:56]}  h6 {[%clk 0:02:06]} 21. Rh1 {[%clk 0:01:50]}  g5 {[%clk 0:01:48]} 22. hxg5 {[%clk 0:01:44]}  hxg5 {[%clk 0:01:48]} 23. Kg3+ {[%clk 0:01:22]}  Kg7 {[%clk 0:01:48]} 24. Rag1 {[%clk 0:01:22]}  Rh8 {[%clk 0:01:36]} 25. fxg5 {[%clk 0:01:10]}  Nxg5 {[%clk 0:01:34]} 26. Nfh4 {[%clk 0:01:02]}  Nxe5 {[%clk 0:01:13]} 27. Nxf5+ {[%clk 0:00:58]}  Kf6 {[%clk 0:01:13]} 28. Ngh4 {[%clk 0:00:48]}  Bd6 {[%clk 0:01:07]} 29. Kf2 {[%clk 0:00:40]}  Ng6 {[%clk 0:00:39]} 30. Bc1 {[%clk 0:00:24]}  Nf4 {[%clk 0:00:26]} 31. Rxg5 {[%clk 0:00:17]}  Kxg5 {[%clk 0:00:18]} 32. Rg1+ {[%clk 0:00:15]}  Kf6 {[%clk 0:00:18]} 33. Rg4 {[%clk 0:00:15]}  Qc7 {[%clk 0:00:14]} 34. Nxd6 {[%clk 0:00:11]}  Nh3+ {[%clk 0:00:14]} 35. Kg2 {[%clk 0:00:10]}  Ke6 {[%clk 0:00:06]} 36. Qe2+ {[%clk 0:00:08]}  Kxd6 {[%clk 0:00:06]} 37. Kxh3 {[%clk 0:00:08]}  Rae8 {[%clk 0:00:05]} 38. Bf4+ {[%clk 0:00:08]}  Kd7 {[%clk 0:00:05]} 39. Qxe8+ {[%clk 0:00:03]}  Rxe8 {[%clk 0:00:04]} 40. Bxc7 {[%clk 0:00:04]}  Kxc7 {[%clk 0:00:05]} 41. Rg7+ {[%clk 0:00:04]}  Kb8 {[%clk 0:00:05]} 42. Ng2 {[%clk 0:00:03]}  Re2 {[%clk 0:00:06]} 43. Nf4 {[%clk 0:00:04]}  Rxa2 {[%clk 0:00:07]} 44. Nd5 {[%clk 0:00:04]}  Rb2 {[%clk 0:00:07]} 45. Kg4 {[%clk 0:00:03]}  Rxb3 {[%clk 0:00:07]} 46. Kf5 {[%clk 0:00:03]}  Rxd3 {[%clk 0:00:08]} 47. Ke5 {[%clk 0:00:04]}  Rh3 {[%clk 0:00:07]} 48. Kd6 {[%clk 0:00:03]}  Rh6+ {[%clk 0:00:07]} 49. Kd7 {[%clk 0:00:04]}  d3 {[%clk 0:00:06]} 50. Kd8 {[%clk 0:00:03]}  Rh4 {[%clk 0:00:06]} 51. Ne7 {[%clk 0:00:02]}  Rh6 {[%clk 0:00:03]} 52. Ke8 {[%clk 0:00:01]}  Re6 {[%clk 0:00:03]} 53. Rg2 {[%clk 0:00:02]}  Re3 {[%clk 0:00:02]} 54. Rg3 {[%clk 0:00:00]}  Re6 {[%clk 0:00:03]} 0-1


[Site "https://www.chess.com"]

[Event "Titled Tuesday Blitz July 11 Late 2023"]
[White "Quirke, Jeffrey"]
[Black "Rakitic2010"]
[WhiteFideId "2013029"]
[WhiteElo "2251"]
[BlackElo "2503"]
[Result "0-1"]
[Round "2"]
[TimeControl "180+2"]
[Date "2023.07.11"]
[WhiteClock "0:00:04"]
[BlackClock "0:02:02"]
[Board "160"]

1. e4 {[%clk 0:03:00]}  Nf6 {[%clk 0:02:59]} 2. e5 {[%clk 0:02:59]}  Nd5 {[%clk 0:02:59]} 3. d4 {[%clk 0:02:58]}  d6 {[%clk 0:03:00]} 4. exd6 {[%clk 0:02:56]}  cxd6 {[%clk 0:02:59]} 5. Nf3 {[%clk 0:02:55]}  g6 {[%clk 0:02:59]} 6. h3 {[%clk 0:02:54]}  Bg7 {[%clk 0:02:59]} 7. Be2 {[%clk 0:02:48]}  O-O {[%clk 0:02:59]} 8. O-O {[%clk 0:02:48]}  Nc6 {[%clk 0:02:59]} 9. c4 {[%clk 0:02:40]}  Nb6 {[%clk 0:02:58]} 10. Be3 {[%clk 0:02:38]}  Bf5 {[%clk 0:02:57]} 11. Nc3 {[%clk 0:02:37]}  e5 {[%clk 0:02:57]} 12. c5 {[%clk 0:01:54]}  dxc5 {[%clk 0:02:54]} 13. dxe5 {[%clk 0:01:49]}  Qe7 {[%clk 0:02:46]} 14. Nb5 {[%clk 0:01:15]}  Nxe5 {[%clk 0:02:41]} 15. Nxe5 {[%clk 0:01:14]}  Qxe5 {[%clk 0:02:39]} 16. Qd6 {[%clk 0:00:50]}  Nd5 {[%clk 0:02:18]} 17. Qxe5 {[%clk 0:00:47]}  Bxe5 {[%clk 0:02:19]} 18. Bxc5 {[%clk 0:00:47]}  Rfc8 {[%clk 0:02:18]} 19. Bxa7 {[%clk 0:00:46]}  Bxb2 {[%clk 0:02:16]} 20. Rad1 {[%clk 0:00:44]}  Nf4 {[%clk 0:02:14]} 21. Bf3 {[%clk 0:00:41]}  Bd3 {[%clk 0:02:11]} 22. Bxb7 {[%clk 0:00:40]}  Bxb5 {[%clk 0:02:09]} 23. Bxc8 {[%clk 0:00:38]}  Bxf1 {[%clk 0:02:08]} 24. Rd8+ {[%clk 0:00:31]}  Kg7 {[%clk 0:02:08]} 25. Be3 {[%clk 0:00:25]}  Ba6 {[%clk 0:02:03]} 26. Bxf4 {[%clk 0:00:17]}  Rxc8 {[%clk 0:02:02]} 27. Rxc8 {[%clk 0:00:15]}  Bxc8 {[%clk 0:02:03]} 28. h4 {[%clk 0:00:14]}  h5 {[%clk 0:02:03]} 29. g3 {[%clk 0:00:13]}  Kf6 {[%clk 0:02:03]} 30. a4 {[%clk 0:00:13]}  Bc3 {[%clk 0:02:02]} 31. Bc7 {[%clk 0:00:13]}  Bd7 {[%clk 0:02:02]} 32. a5 {[%clk 0:00:12]}  Bb5 {[%clk 0:02:02]} 33. Kg2 {[%clk 0:00:12]}  Kf5 {[%clk 0:02:02]} 34. f3 {[%clk 0:00:12]}  Bc6 {[%clk 0:02:01]} 35. Kf2 {[%clk 0:00:12]}  Bd4+ {[%clk 0:02:02]} 36. Kg2 {[%clk 0:00:12]}  f6 {[%clk 0:02:01]} 37. Bd8 {[%clk 0:00:12]}  g5 {[%clk 0:02:01]} 38. hxg5 {[%clk 0:00:11]}  fxg5 {[%clk 0:02:02]} 39. Bxg5 {[%clk 0:00:04]}  Kxg5 {[%clk 0:02:02]} 0-1


[Site "https://www.chess.com"]

[Event "Titled Tuesday Blitz July 11 Late 2023"]
[White "Peycheva, Gergana"]
[Black "Alexikov, Alexander"]
[WhiteFideId "2916711"]
[BlackFideId "14103958"]
[WhiteElo "2502"]
[BlackElo "2249"]
[Result "1-0"]
[Round "2"]
[TimeControl "180+2"]
[Date "2023.07.11"]
[WhiteClock "0:00:07"]
[BlackClock "0:00:00"]
[Board "161"]

1. d4 {[%clk 0:02:57]}  Nf6 {[%clk 0:03:00]} 2. c4 {[%clk 0:02:51]}  g6 {[%clk 0:03:00]} 3. Nc3 {[%clk 0:02:49]}  Bg7 {[%clk 0:03:00]} 4. e4 {[%clk 0:02:48]}  d6 {[%clk 0:03:01]} 5. Nf3 {[%clk 0:02:48]}  O-O {[%clk 0:03:01]} 6. Be2 {[%clk 0:02:48]}  e5 {[%clk 0:02:59]} 7. O-O {[%clk 0:02:49]}  Na6 {[%clk 0:02:59]} 8. Re1 {[%clk 0:02:46]}  c6 {[%clk 0:02:58]} 9. d5 {[%clk 0:02:39]}  Nc5 {[%clk 0:02:41]} 10. Bf1 {[%clk 0:02:38]}  a5 {[%clk 0:02:38]} 11. h3 {[%clk 0:02:37]}  Bd7 {[%clk 0:02:10]} 12. b3 {[%clk 0:02:28]}  cxd5 {[%clk 0:02:07]} 13. cxd5 {[%clk 0:02:23]}  b5 {[%clk 0:02:05]} 14. Nxb5 {[%clk 0:02:16]}  Bxb5 {[%clk 0:01:59]} 15. Bxb5 {[%clk 0:02:17]}  Nfxe4 {[%clk 0:01:56]} 16. Bb2 {[%clk 0:02:16]}  f5 {[%clk 0:01:53]} 17. Rc1 {[%clk 0:02:09]}  Qb6 {[%clk 0:01:51]} 18. Bc6 {[%clk 0:02:04]}  Ra7 {[%clk 0:01:44]} 19. Ba3 {[%clk 0:02:01]}  Bh6 {[%clk 0:01:05]} 20. Rc2 {[%clk 0:01:58]}  Na6 {[%clk 0:00:58]} 21. Qd3 {[%clk 0:00:54]}  Nb4 {[%clk 0:00:56]} 22. Bxb4 {[%clk 0:00:53]}  axb4 {[%clk 0:00:55]} 23. Rxe4 {[%clk 0:00:38]}  fxe4 {[%clk 0:00:53]} 24. Qxe4 {[%clk 0:00:39]}  Raf7 {[%clk 0:00:38]} 25. Qh4 {[%clk 0:00:28]}  Rxf3 {[%clk 0:00:28]} 26. gxf3 {[%clk 0:00:22]}  Bg7 {[%clk 0:00:26]} 27. Kg2 {[%clk 0:00:17]}  h5 {[%clk 0:00:20]} 28. Qe7 {[%clk 0:00:16]}  Qb8 {[%clk 0:00:12]} 29. Bd7 {[%clk 0:00:13]}  Kh7 {[%clk 0:00:10]} 30. Be6 {[%clk 0:00:09]}  Qd8 {[%clk 0:00:04]} 31. Rc7 {[%clk 0:00:08]}  Qxe7 {[%clk 0:00:02]} 32. Rxe7 {[%clk 0:00:09]}  Kh6 {[%clk 0:00:00]} 33. Rb7 {[%clk 0:00:07]} 1-0


[Site "https://www.chess.com"]

[Event "Titled Tuesday Blitz July 11 Late 2023"]
[White "Forgacs, Attila Jr."]
[Black "Sarkar, Justin"]
[WhiteFideId "773654"]
[BlackFideId "2010011"]
[WhiteElo "2500"]
[BlackElo "2245"]
[Result "1-0"]
[Round "2"]
[TimeControl "180+2"]
[Date "2023.07.11"]
[WhiteClock "0:00:02"]
[BlackClock "0:00:00"]
[Board "162"]

1. Nc3 {[%clk 0:03:00]}  Nf6 {[%clk 0:02:41]} 2. g4 {[%clk 0:03:00]}  Nxg4 {[%clk 0:02:29]} 3. e4 {[%clk 0:03:00]}  d5 {[%clk 0:02:22]} 4. Nxd5 {[%clk 0:02:46]}  c6 {[%clk 0:02:21]} 5. Nc3 {[%clk 0:02:41]}  e5 {[%clk 0:02:18]} 6. Bg2 {[%clk 0:02:08]}  Bc5 {[%clk 0:02:09]} 7. Nh3 {[%clk 0:02:04]}  Qh4 {[%clk 0:02:02]} 8. Qf3 {[%clk 0:02:01]}  O-O {[%clk 0:01:48]} 9. d3 {[%clk 0:02:00]}  f5 {[%clk 0:01:39]} 10. Bg5 {[%clk 0:01:33]}  Qh5 {[%clk 0:01:35]} 11. O-O-O {[%clk 0:01:15]}  f4 {[%clk 0:01:13]} 12. Na4 {[%clk 0:00:48]}  Bd6 {[%clk 0:01:11]} 13. d4 {[%clk 0:00:48]}  h6 {[%clk 0:01:00]} 14. dxe5 {[%clk 0:00:48]}  Bxe5 {[%clk 0:00:55]} 15. Be7 {[%clk 0:00:43]}  Re8 {[%clk 0:00:48]} 16. Ba3 {[%clk 0:00:31]}  Qf7 {[%clk 0:00:37]} 17. Kb1 {[%clk 0:00:21]}  b6 {[%clk 0:00:37]} 18. Nc3 {[%clk 0:00:18]}  Be6 {[%clk 0:00:34]} 19. b3 {[%clk 0:00:17]}  Qf6 {[%clk 0:00:27]} 20. Ne2 {[%clk 0:00:16]}  g5 {[%clk 0:00:23]} 21. Nhg1 {[%clk 0:00:14]}  Bc7 {[%clk 0:00:12]} 22. Bb2 {[%clk 0:00:09]}  Ne5 {[%clk 0:00:11]} 23. Qc3 {[%clk 0:00:09]}  c5 {[%clk 0:00:06]} 24. Nf3 {[%clk 0:00:09]}  Nbc6 {[%clk 0:00:05]} 25. Nxe5 {[%clk 0:00:08]}  Bxe5 {[%clk 0:00:05]} 26. Qf3 {[%clk 0:00:04]}  Bxb2 {[%clk 0:00:04]} 27. e5 {[%clk 0:00:03]}  Nxe5 {[%clk 0:00:04]} 28. Qe4 {[%clk 0:00:03]}  f3 {[%clk 0:00:03]} 29. Bh3 {[%clk 0:00:01]}  fxe2 {[%clk 0:00:03]} 30. Qxe2 {[%clk 0:00:01]}  Bxh3 {[%clk 0:00:02]} 31. Qb5 {[%clk 0:00:01]}  Bd7 {[%clk 0:00:01]} 32. Rhe1 {[%clk 0:00:02]}  Bxb5 {[%clk 0:00:00]} 33. Rxe5 {[%clk 0:00:02]} 1-0


[Site "https://www.chess.com"]

[Event "Titled Tuesday Blitz July 11 Late 2023"]
[White "Chemin, Justo Reinaldo"]
[Black "Reprintsev, Alexander"]
[WhiteFideId "2101580"]
[BlackFideId "14100541"]
[WhiteElo "2236"]
[BlackElo "2499"]
[Result "1-0"]
[Round "2"]
[TimeControl "180+2"]
[Date "2023.07.11"]
[WhiteClock "0:00:14"]
[BlackClock "0:00:00"]
[Board "163"]

1. d4 {[%clk 0:03:00]}  d5 {[%clk 0:02:35]} 2. Nf3 {[%clk 0:03:00]}  Nc6 {[%clk 0:02:18]} 3. e3 {[%clk 0:03:00]}  Bg4 {[%clk 0:02:17]} 4. c4 {[%clk 0:02:59]}  e6 {[%clk 0:02:17]} 5. Nc3 {[%clk 0:02:56]}  Nf6 {[%clk 0:02:12]} 6. Qb3 {[%clk 0:02:50]}  Na5 {[%clk 0:02:01]} 7. Qa4+ {[%clk 0:02:46]}  c6 {[%clk 0:02:00]} 8. Ne5 {[%clk 0:02:45]}  dxc4 {[%clk 0:01:50]} 9. Nxc4 {[%clk 0:02:27]}  Nxc4 {[%clk 0:01:47]} 10. Qxc4 {[%clk 0:02:28]}  Bd6 {[%clk 0:01:42]} 11. f3 {[%clk 0:02:23]}  Bh5 {[%clk 0:01:41]} 12. e4 {[%clk 0:02:23]}  e5 {[%clk 0:01:37]} 13. Be3 {[%clk 0:02:20]}  O-O {[%clk 0:01:37]} 14. Be2 {[%clk 0:02:14]}  Qc7 {[%clk 0:01:21]} 15. g4 {[%clk 0:02:07]}  Bg6 {[%clk 0:01:20]} 16. h4 {[%clk 0:02:07]}  exd4 {[%clk 0:01:18]} 17. Bxd4 {[%clk 0:02:04]}  Bg3+ {[%clk 0:01:17]} 18. Kf1 {[%clk 0:01:58]}  b5 {[%clk 0:01:18]} 19. Qb3 {[%clk 0:01:49]}  b4 {[%clk 0:00:59]} 20. Nd1 {[%clk 0:01:39]}  Rfd8 {[%clk 0:00:41]} 21. Bxf6 {[%clk 0:01:35]}  gxf6 {[%clk 0:00:41]} 22. h5 {[%clk 0:01:36]}  Qb6 {[%clk 0:00:41]} 23. Kg2 {[%clk 0:01:28]}  Rxd1 {[%clk 0:00:39]} 24. Kxg3 {[%clk 0:01:26]}  Rxa1 {[%clk 0:00:28]} 25. Rxa1 {[%clk 0:01:23]}  Bxe4 {[%clk 0:00:19]} 26. fxe4 {[%clk 0:01:20]}  Re8 {[%clk 0:00:20]} 27. Bf3 {[%clk 0:01:20]}  Re5 {[%clk 0:00:19]} 28. Rd1 {[%clk 0:01:18]}  Kg7 {[%clk 0:00:18]} 29. Rd7 {[%clk 0:01:17]}  Qg1+ {[%clk 0:00:17]} 30. Bg2 {[%clk 0:01:14]}  Qe1+ {[%clk 0:00:17]} 31. Kf3 {[%clk 0:01:08]}  Qxe4+ {[%clk 0:00:15]} 32. Kg3 {[%clk 0:01:06]}  Qe1+ {[%clk 0:00:15]} 33. Kf3 {[%clk 0:01:01]}  Qe4+ {[%clk 0:00:13]} 34. Kg3 {[%clk 0:01:02]}  Qe1+ {[%clk 0:00:12]} 35. Kh2 {[%clk 0:00:49]}  Qh4+ {[%clk 0:00:12]} 36. Qh3 {[%clk 0:00:49]}  Qg5 {[%clk 0:00:12]} 37. h6+ {[%clk 0:00:49]}  Kf8 {[%clk 0:00:12]} 38. Rd8+ {[%clk 0:00:42]}  Ke7 {[%clk 0:00:11]} 39. Rd3 {[%clk 0:00:41]}  Re2 {[%clk 0:00:07]} 40. Rf3 {[%clk 0:00:33]}  Qe5+ {[%clk 0:00:06]} 41. Qg3 {[%clk 0:00:32]}  Rxb2 {[%clk 0:00:05]} 42. Qxe5+ {[%clk 0:00:31]}  fxe5 {[%clk 0:00:06]} 43. Rf5 {[%clk 0:00:27]}  f6 {[%clk 0:00:06]} 44. Kg3 {[%clk 0:00:25]}  c5 {[%clk 0:00:04]} 45. Bd5 {[%clk 0:00:25]}  Rd2 {[%clk 0:00:03]} 46. Bb3 {[%clk 0:00:23]}  a5 {[%clk 0:00:02]} 47. Rf1 {[%clk 0:00:20]}  a4 {[%clk 0:00:02]} 48. Bxa4 {[%clk 0:00:19]}  Rd3+ {[%clk 0:00:02]} 49. Kh4 {[%clk 0:00:16]}  c4 {[%clk 0:00:03]} 50. Rb1 {[%clk 0:00:15]}  Ra3 {[%clk 0:00:01]} 51. Rxb4 {[%clk 0:00:14]}  Rxa2 {[%clk 0:00:00]} 52. Rxc4 {[%clk 0:00:14]} 1-0


[Site "https://www.chess.com"]